bitfinex-derivatives/quotes_SOLF0:USTF0_20260227
["timestamp","ask_amount","ask_price","bid_price","bid_amount"]
[1772207583729,9.30427421,83.004,82.888,7.25942534]
[1772207583926,9.05863058,82.99,82.913,7.25940539]
[1772207584626,10.8473,82.967,82.913,7.25940539]
[1772207584827,9.05863058,82.93,82.877,7.25940539]
[1772207585933,10.8525,82.928,82.877,7.25940539]
[1772207586429,19.91083058,82.93,82.877,7.25940539]
[1772207587134,10.8536,82.919,82.877,7.25940539]
[1772207587435,9.05863058,82.95,82.877,7.25940539]
[1772207588929,10.8521,82.931,82.877,7.25940539]
[1772207589125,5.42432233,82.968,82.877,7.25940539]
[1772207589126,9.05863058,82.93,82.877,7.25940539]
[1772207589330,9.05863058,82.93,82.831,6.8820199]
[1772207589729,10.8557,82.904,82.846,6.8820199]
[1772207590634,9.05863058,82.91,82.846,6.8820199]
[1772207591032,9.05863058,82.91,82.823,6.88324664]
[1772207591336,9.05863058,82.89,82.823,6.88324664]
[1772207591536,10.8613,82.861,82.823,6.88324664]
[1772207591733,5.46160429,82.889,82.79,9.05863058]
[1772207592226,5.46682196,82.869,82.77,9.05863058]
[1772207592835,10.8648,82.834,82.772,10.8728]
[1772207593134,5.43991136,82.849,82.75,9.05863058]
[1772207593729,5.4449591,82.829,82.721,5.63576019]
[1772207594826,5.4449591,82.829,82.758,5.63576019]
[1772207595027,5.39176399,82.849,82.761,5.63576019]
[1772207595233,9.05863058,82.83,82.761,6.019e-05]
[1772207595434,6.16960987,82.813,82.732,10.8781]
[1772207595828,6.16960987,82.809,82.732,10.8781]
[1772207596035,10.8695,82.798,82.732,10.8781]
[1772207596534,17.03770987,82.809,82.742,10.8767]
[1772207596740,17.03770987,82.809,82.7,62.0]
[1772207596741,6.16960987,82.826,82.74,9.05863058]
[1772207597333,6.16960987,82.826,82.741,5.63576019]
[1772207598042,6.16960987,82.826,82.752,5.63576019]
[1772207598540,10.8666,82.82,82.756,5.63576019]
[1772207599340,10.8678,82.811,82.756,5.63576019]
[1772207600437,6.16960987,82.826,82.756,5.63576019]
[1772207601336,6.16960987,82.826,82.74,9.05863058]
[1772207601337,10.8661,82.824,82.769,16.50896019]
[1772207601538,6.16960987,82.823,82.752,5.63576019]
[1772207602945,6.16960987,82.816,82.752,5.63576019]
[1772207603939,17.03680987,82.816,82.754,5.63576019]
[1772207604942,17.03680987,82.816,82.761,5.63576019]
[1772207605344,6.16960987,82.816,82.761,5.63576019]
[1772207606544,6.16960987,82.816,82.73,9.05863058]
[1772207606545,10.8676,82.813,82.763,5.63576019]
[1772207606949,6.16960987,82.804,82.746,5.63576019]
[1772207607137,6.16960987,82.804,82.711,5.63576019]
[1772207607341,6.16960987,82.799,82.711,5.63576019]
[1772207607847,10.8739,82.765,82.717,10.8801]
[1772207608645,10.8739,82.765,82.711,5.63576019]
[1772207608944,6.16960987,82.794,82.711,5.63576019]
[1772207609336,10.873,82.771,82.711,5.63576019]
[1772207609846,6.16960987,82.778,82.711,5.63576019]
[1772207611143,10.8711,82.786,82.735,10.8777]
[1772207611540,6.16960987,82.795,82.731,5.63576019]
[1772207612142,6.16960987,82.795,82.733,5.63576019]
[1772207614047,10.8719,82.78,82.733,5.63576019]
[1772207614645,10.8708,82.788,82.734,10.8778]
[1772207614845,6.16960987,82.795,82.734,10.8778]
[1772207615149,10.8729,82.772,82.733,5.63576019]
[1772207615348,9.05863058,82.8,82.69,71.05863058]
[1772207615349,6.16960987,82.771,82.719,5.63576019]
[1772207615648,9.05863058,82.8,82.684,36.34]
[1772207615649,6.16960987,82.759,82.684,5.63576019]
[1772207615839,17.04610987,82.745,82.684,5.63576019]
[1772207616041,6.16960987,82.745,82.684,5.63576019]
[1772207616543,6.16960987,82.745,82.703,10.8818]
[1772207616745,6.16960987,82.762,82.704,5.63576019]
[1772207618040,6.16960987,82.762,82.718,10.8799]
[1772207619852,6.16960987,82.762,82.569,37.13514188]
[1772207619853,5.75310493,82.778,82.727,5.77530202]
[1772207620254,10.8724,82.776,82.728,10.8786]
[1772207621553,5.67541382,82.799,82.728,6.14128656]
[1772207622449,5.67541382,82.788,82.704,6.14128656]
[1772207623355,10.8724,82.776,82.728,10.8786]
[1772207624055,5.67541382,82.783,82.736,10.8775]
[1772207624954,10.8718,82.781,82.736,10.8775]
[1772207625547,5.67541382,82.781,82.728,10.8785]
[1772207625752,10.8729,82.772,82.721,6.14128656]
[1772207625949,5.67541382,82.781,82.721,17.02088656]
[1772207626150,5.67541382,82.781,82.722,6.14128656]
[1772207626859,10.873,82.771,82.723,10.8792]
[1772207627359,10.873,82.771,82.723,17.02048656]
[1772207628357,5.67541382,82.77,82.707,6.14128656]
[1772207629164,5.67541382,82.77,82.721,6.14128656]
[1772207629366,5.67541382,82.77,82.684,6.14128656]
[1772207630060,10.875,82.757,82.714,10.8805]
[1772207630861,10.8755,82.753,82.706,10.8814]
[1772207631063,10.8755,82.753,82.705,6.14128656]
[1772207631865,5.67541382,82.772,82.705,6.14128656]
[1772207632958,10.873,82.771,82.726,10.8789]
[1772207633560,10.8739,82.765,82.719,10.8798]
[1772207633861,5.67541382,82.764,82.705,6.14128656]
[1772207634063,10.8762,82.747,82.705,6.14128656]
[1772207634662,5.67541382,82.744,82.706,10.8815]
[1772207634969,5.67541382,82.744,82.69,6.14128656]
[1772207635668,5.67541382,82.744,82.703,10.8819]
[1772207636667,10.8767,82.743,82.696,10.8828]
[1772207637061,5.67541382,82.742,82.69,6.14128656]
[1772207637863,10.8785,82.73,82.69,6.14128656]
[1772207639071,10.8775,82.737,82.692,10.8833]
[1772207639271,10.8775,82.737,82.69,6.14128656]
[1772207640266,5.67541382,82.736,82.69,6.14128656]
[1772207641171,5.67541382,82.753,82.69,6.14128656]
[1772207641671,5.67541382,82.753,82.707,17.02258656]
[1772207642268,5.67541382,82.753,82.715,10.8802]
[1772207643175,5.67541382,82.753,82.707,6.14128656]
[1772207643375,5.67541382,82.753,82.67,250.23863058]
[1772207643376,5.67541382,82.753,82.671,6.14128656]
[1772207644871,10.8774,82.738,82.694,10.8831]
[1772207645268,5.67541382,82.739,82.694,10.8831]
[1772207645873,5.67541382,82.739,82.685,6.14128656]
[1772207646074,5.67541382,82.754,82.685,6.14128656]
[1772207646477,5.67541382,82.754,82.717,10.88]
[1772207646678,10.8747,82.759,82.717,10.88]
[1772207646979,10.8754,82.753,82.717,10.88]
[1772207647472,5.67541382,82.77,82.724,10.8791]
[1772207647879,10.8743,82.762,82.705,6.14128656]
[1772207648273,5.67541382,82.77,82.705,6.14128656]
[1772207648778,5.67541382,82.786,82.722,6.14128656]
[1772207649377,10.8724,82.776,82.728,17.01988656]
[1772207649581,10.8724,82.776,82.728,6.14128656]
[1772207650978,10.8724,82.776,82.734,10.8778]
[1772207651380,5.82360211,82.776,82.698,5.92024783]
[1772207651577,5.82360211,82.776,82.711,10.8809]
[1772207651983,10.8759,82.75,82.698,5.92024783]
[1772207652281,5.82360211,82.758,82.717,10.8801]
[1772207652880,5.82360211,82.758,82.723,10.8793]
[1772207653881,10.875,82.756,82.716,10.8801]
[1772207654185,5.82360211,82.758,82.696,5.92024783]
[1772207654679,5.82360211,82.758,82.681,5.92024783]
[1772207655384,10.8776,82.737,82.681,5.92024783]
[1772207655591,5.82360211,82.758,82.681,5.92024783]
[1772207657989,10.8774,82.738,82.697,10.8827]
[1772207658990,5.82360211,82.758,82.694,5.92024783]
[1772207659185,5.82360211,82.776,82.701,5.92024783]
[1772207659583,10.8746,82.76,82.717,10.88]
[1772207659788,5.82360211,82.776,82.701,5.92024783]
[1772207660892,10.8735,82.767,82.723,10.8793]
[1772207661194,5.82360211,82.776,82.701,5.92024783]
[1772207662994,10.8753,82.754,82.709,10.8811]
[1772207663192,5.82360211,82.753,82.663,5.92024783]
[1772207663593,5.82360211,82.722,82.666,10.8868]
[1772207664295,10.8802,82.716,82.673,10.8858]
[1772207664497,5.82360211,82.739,82.663,5.92024783]
[1772207665091,5.82360211,82.739,82.65,9.10449224]
[1772207665092,10.8787,82.728,82.678,5.92024783]
[1772207665492,5.82360211,82.739,82.678,5.92024783]
[1772207665697,10.8777,82.736,82.694,10.8831]
[1772207665896,10.8777,82.736,82.694,16.80334783]
[1772207666094,5.82360211,82.735,82.676,5.92024783]
[1772207666793,10.8791,82.725,82.677,10.8853]
[1772207667294,5.82360211,82.735,82.676,5.92024783]
[1772207667500,5.82360211,82.735,82.676,16.80564783]
[1772207668996,10.8797,82.72,82.676,16.80564783]
[1772207669194,5.82360211,82.735,82.647,5.92024783]
[1772207669394,5.82360211,82.719,82.647,5.92024783]
[1772207669602,5.82360211,82.697,82.647,5.92024783]
[1772207670296,10.8829,82.696,82.647,5.92024783]
[1772207671291,5.82360211,82.714,82.651,5.92024783]
[1772207671502,5.82360211,82.709,82.631,5.92024783]
[1772207671705,5.82360211,82.709,82.639,5.92024783]
[1772207672295,5.82360211,82.709,82.593,2.10068816]
[1772207672296,5.82360211,82.709,82.65,5.92024783]
[1772207675002,10.8835,82.692,82.65,5.92024783]
[1772207675206,5.82360211,82.709,82.65,5.92024783]
[1772207675609,5.82360211,82.709,82.651,5.92024783]
[1772207675610,10.8824,82.7,82.651,5.92024783]
[1772207675806,5.82360211,82.709,82.651,5.92024783]
[1772207676410,10.884,82.688,82.651,5.92024783]
[1772207676813,10.884,82.688,82.63,9.10449224]
[1772207676814,10.884,82.688,82.631,5.92024783]
[1772207677008,10.8849,82.681,82.635,5.92024783]
[1772207679008,5.82360211,82.694,82.637,6.11284852]
[1772207679309,10.8838,82.689,82.637,6.11284852]
[1772207679910,10.8838,82.689,82.641,6.01431074]
[1772207680312,10.8847,82.683,82.641,6.01431074]
[1772207680710,30.86139224,82.73,82.582,21.7957]
[1772207680711,5.98084718,82.681,82.627,6.01431074]
[1772207681706,5.98084718,82.698,82.651,6.01431074]
[1772207682208,5.98084718,82.698,82.658,10.8879]
[1772207682610,5.98084718,82.698,82.65,9.10449224]
[1772207682611,5.98084718,82.72,82.659,6.01431074]
[1772207682913,5.98084718,82.72,82.666,6.01431074]
[1772207683210,16.86234718,82.707,82.662,10.8873]
[1772207683412,5.98084718,82.706,82.651,6.01431074]
[1772207683908,10.8821,82.702,82.66,10.8875]
[1772207684510,10.8821,82.702,82.653,6.01431074]
[1772207686021,10.8821,82.702,82.655,10.8883]
[1772207687917,10.8821,82.702,82.658,10.8878]
[1772207688418,10.8821,82.702,82.662,10.8873]
[1772207688811,10.8821,82.702,82.659,6.01431074]
[1772207690311,5.98084718,82.698,82.631,6.01431074]
[1772207691917,10.8833,82.693,82.652,10.8885]
[1772207692716,16.86414718,82.693,82.645,10.8895]
[1772207693420,5.98084718,82.713,82.652,6.01431074]
[1772207695022,10.8823,82.701,82.66,10.8876]
[1772207695513,10.8813,82.708,82.666,10.8867]
[1772207695717,10.8813,82.708,82.665,6.01431074]
[1772207695718,5.98084718,82.713,82.665,6.01431074]
[1772207696120,10.8809,82.712,82.665,6.01431074]
[1772207696613,10.8811,82.71,82.666,10.8868]
[1772207696817,16.86194718,82.71,82.666,10.8868]
[1772207697717,10.8798,82.72,82.675,16.89991074]
[1772207697923,10.8798,82.72,82.676,6.01431074]
[1772207698524,5.98084718,82.714,82.662,6.01431074]
[1772207700025,10.8816,82.706,82.663,10.8871]
[1772207700627,10.8816,82.706,82.662,6.01431074]
[1772207700628,5.98084718,82.728,82.662,6.01431074]
[1772207701025,5.98084718,82.694,82.645,6.01431074]
[1772207701327,5.98084718,82.694,82.631,6.01431074]
[1772207701623,5.98084718,82.694,82.635,6.01431074]
[1772207702028,10.8862,82.671,82.635,6.01431074]
[1772207702228,10.8862,82.671,82.624,10.8923]
[1772207702624,10.8865,82.669,82.624,10.8923]
[1772207703027,5.98084718,82.669,82.621,6.01431074]
[1772207704127,10.8874,82.662,82.621,6.01431074]
[1772207704323,5.98084718,82.669,82.621,6.01431074]
[1772207704533,5.98084718,82.687,82.621,6.01431074]
[1772207705022,5.98084718,82.679,82.635,6.01431074]
[1772207705227,5.98084718,82.679,82.621,6.01431074]
[1772207705728,5.98084718,82.66,82.607,6.01431074]
[1772207706930,10.8879,82.658,82.608,16.90871074]
[1772207707423,5.98084718,82.676,82.618,6.01431074]
[1772207707623,5.98084718,82.676,82.621,6.01431074]
[1772207708029,10.8857,82.675,82.63,6.01431074]
[1772207709021,5.98084718,82.676,82.633,6.01431074]
[1772207709832,9.12077152,82.72,82.639,6.01431074]
[1772207709833,5.98084718,82.691,82.639,6.01431074]
[1772207710629,5.82920563,82.718,82.639,6.01431074]
[1772207710829,5.82920563,82.716,82.639,6.01431074]
[1772207711032,5.82920563,82.69,82.639,6.01431074]
[1772207711834,5.82920563,82.69,82.64,10.8902]
[1772207712629,9.12077152,82.72,82.639,6.01431074]
[1772207712630,5.82920563,82.685,82.639,6.01431074]
[1772207713630,5.82920563,82.685,82.641,10.8901]
[1772207715030,5.82920563,82.685,82.645,10.8895]
[1772207715228,5.82920563,82.685,82.645,16.91855013]
[1772207715728,5.82920563,82.683,82.629,6.02905013]
[1772207716126,5.82920563,82.682,82.63,6.02905013]
[1772207716327,5.82920563,82.682,82.611,6.02905013]
[1772207716835,9.12077152,82.7,82.611,6.02905013]
[1772207716836,10.889,82.65,82.611,6.02905013]
[1772207717238,5.82920563,82.658,82.611,6.02905013]
[1772207719036,16.71720563,82.658,82.614,10.8936]
[1772207719333,9.12077152,82.7,82.615,6.02905013]
[1772207719334,9.41444432,82.688,82.615,6.02905013]
[1772207719534,5.82920563,82.674,82.615,6.02905013]
[1772207719740,10.887,82.665,82.626,10.8919]
[1772207721740,10.887,82.665,82.615,6.02905013]
[1772207721741,10.888,82.658,82.615,6.02905013]
[1772207722836,10.888,82.658,82.62,4.25645052]
[1772207723440,10.888,82.658,82.615,6.02905013]
[1772207724644,10.8887,82.652,82.615,6.02905013]
[1772207725642,10.8887,82.652,82.578,300.29569026]
[1772207725643,10.8899,82.643,82.601,6.02905013]
[1772207726544,10.8899,82.643,82.61,4.25645052]
[1772207727342,5.82920563,82.649,82.61,4.25645052]
[1772207728044,10.8892,82.648,82.61,4.25645052]
[1772207728447,5.82920563,82.64,82.6,4.25645052]
[1772207728655,5.82920563,82.64,82.586,6.02905013]
[1772207728656,5.82920563,82.64,82.59,4.25645052]
[1772207729650,5.82920563,82.64,82.6,4.25645052]
[1772207730252,10.8904,82.639,82.6,4.25645052]
[1772207730651,16.71960563,82.639,82.6,4.25645052]
[1772207731847,5.82920563,82.639,82.602,10.8952]
[1772207732644,5.82920563,82.639,82.6,4.25645052]
[1772207733248,4.25645052,82.65,82.604,6.02905013]
[1772207733452,5.82920563,82.665,82.62,4.25645052]
[1772207733848,5.82920563,82.665,82.623,10.8924]
[1772207734049,332.79787261,82.678,82.63,4.25645052]
[1772207734352,5.82920563,82.677,82.64,4.25645052]
[1772207734549,5.82920563,82.677,82.63,4.25645052]
[1772207734852,5.82920563,82.677,82.624,6.02905013]
[1772207735052,5.82920563,82.677,82.63,4.25645052]
[1772207735856,10.8873,82.663,82.63,4.25645052]
[1772207736356,5.82920563,82.677,82.624,6.02905013]
[1772207736856,5.82920563,82.677,82.63,4.25645052]
[1772207737053,10.8861,82.672,82.63,4.25645052]
[1772207737352,5.82920563,82.677,82.64,4.25645052]
[1772207738853,6.13514867,82.695,82.641,5.98375622]
[1772207739847,10.8846,82.683,82.65,4.25645052]
[1772207741649,10.8846,82.683,82.645,10.8896]
[1772207742656,6.0505482,82.712,82.649,5.9934615]
[1772207742859,6.0505482,82.712,82.651,5.9934615]
[1772207743059,4.25645052,82.71,82.661,5.9934615]
[1772207743962,4.25645052,82.71,82.65,4.25645052]
[1772207743963,10.8819,82.704,82.663,16.8806615]
[1772207744556,10.8819,82.704,82.664,5.9934615]
[1772207744853,10.8819,82.704,82.665,10.8869]
[1772207745051,10.8812,82.709,82.666,5.9934615]
[1772207745864,10.8812,82.709,82.667,10.8867]
[1772207746258,10.8812,82.709,82.666,5.9934615]
[1772207746563,10.8821,82.703,82.666,5.9934615]
[1772207747261,6.0505482,82.736,82.671,5.9934615]
[1772207747463,6.0505482,82.736,82.632,21.7824]
[1772207747464,6.0505482,82.736,82.681,5.9934615]
[1772207747862,4.25645052,82.73,82.681,5.9934615]
[1772207748265,6.0505482,82.75,82.701,5.9934615]
[1772207748561,4.25645052,82.76,82.711,5.9934615]
[1772207748865,6.0505482,82.765,82.711,5.9934615]
[1772207749463,10.8742,82.762,82.72,4.25645052]
[1772207750266,10.8727,82.774,82.721,5.9934615]
[1772207750573,10.30699872,82.76,82.71,4.25645052]
[1772207750764,6.0505482,82.759,82.71,4.25645052]
[1772207750964,6.0505482,82.759,82.707,5.9934615]
[1772207751172,4.25645052,82.77,82.715,5.9934615]
[1772207751465,6.0505482,82.749,82.652,36.26]
[1772207751670,6.0505482,82.739,82.688,5.9934615]
[1772207751969,4.25645052,82.72,82.671,5.9934615]
[1772207752969,4.25645052,82.72,82.679,10.885]
[1772207753665,4.25645052,82.74,82.687,5.9934615]
[1772207753866,4.25645052,82.73,82.671,5.9934615]
[1772207754062,4.25645052,82.72,82.671,5.9934615]
[1772207754462,4.25645052,82.72,82.675,5.9934615]
[1772207754663,4.25645052,82.74,82.681,5.9934615]
[1772207755071,4.25645052,82.73,82.681,5.9934615]
[1772207755272,6.0505482,82.726,82.681,5.9934615]
[1772207756175,10.8802,82.717,82.681,5.9934615]
[1772207756365,10.8802,82.717,82.642,5.9934615]
[1772207757165,10.8802,82.717,82.673,10.8858]
[1772207757363,16.9295482,82.726,82.673,16.8792615]
[1772207757571,16.9295482,82.726,82.641,36.26]
[1772207757572,16.9295482,82.726,82.674,5.9934615]
[1772207758475,10.8793,82.724,82.678,5.9934615]
[1772207760077,16.9298482,82.724,82.678,5.9934615]
[1772207760272,6.0505482,82.718,82.665,5.9934615]
[1772207760667,9.10875457,82.73,82.674,5.9934615]
[1772207760872,6.0505482,82.732,82.674,5.9934615]
[1772207761675,10.8792,82.724,82.679,10.885]
[1772207762472,10.8792,82.724,82.681,10.8848]
[1772207762673,6.0505482,82.732,82.682,5.9934615]
[1772207762878,6.0505482,82.732,82.64,9.10875457]
[1772207762879,6.0505482,82.729,82.645,5.9934615]
[1772207763072,6.0505482,82.729,82.659,10.8877]
[1772207763272,10.8815,82.707,82.66,5.9934615]
[1772207764380,6.0505482,82.713,82.631,36.26]
[1772207764576,6.0505482,82.748,82.668,5.9934615]
[1772207764776,6.0505482,82.748,82.671,5.9934615]
[1772207764973,10.8785,82.73,82.688,5.9934615]
[1772207765377,10.8794,82.723,82.688,5.9934615]
[1772207765782,10.8794,82.723,82.66,9.10638393]
[1772207765783,6.0505482,82.733,82.661,5.9934615]
[1772207766377,10.8805,82.714,82.666,10.8868]
[1772207766579,6.0505482,82.739,82.667,5.9934615]
[1772207767280,6.0505482,82.739,82.68,5.9934615]
[1772207767684,16.9278482,82.739,82.696,5.9934615]
[1772207768883,10.8776,82.736,82.696,5.9934615]
[1772207769078,10.8776,82.736,82.652,21.7772]
[1772207769079,6.0505482,82.736,82.641,5.9934615]
[1772207769581,6.0505482,82.739,82.677,5.9934615]
[1772207770281,10.8782,82.732,82.685,16.45336092]
[1772207770684,6.0505482,82.739,82.685,16.45336092]
[1772207771482,6.0505482,82.739,82.69,10.8836]
[1772207771683,6.0505482,82.739,82.691,5.56906092]
[1772207772481,6.0505482,82.739,82.659,5.56906092]
[1772207773085,5.60467906,82.714,82.659,16.45676092]
[1772207773886,10.8819,82.704,82.659,16.45676092]
[1772207774187,10.8819,82.704,82.664,10.887]
[1772207775983,4.25270315,82.72,82.672,5.56906092]
[1772207776586,4.25270315,82.72,82.66,4.25270315]
[1772207776587,10.8807,82.713,82.674,16.45476092]
[1772207777189,10.8807,82.713,82.675,5.56906092]
[1772207778786,10.8816,82.706,82.675,5.56906092]
[1772207778988,10.8816,82.706,82.661,5.56906092]
[1772207779382,4.25270315,82.71,82.664,5.56906092]
[1772207779587,9.85738221,82.72,82.664,5.56906092]
[1772207779784,4.25270315,82.71,82.664,5.56906092]
[1772207780189,10.8803,82.716,82.674,16.45476092]
[1772207780496,4.25270315,82.71,82.674,5.56906092]
[1772207780797,10.8811,82.71,82.674,5.56906092]
[1772207781196,9.85738221,82.72,82.674,5.56906092]
[1772207781796,5.60467906,82.72,82.674,5.56906092]
[1772207781998,9.85738221,82.72,82.674,5.56906092]
[1772207782999,10.8802,82.717,82.675,10.8856]
[1772207783198,10.8802,82.717,82.676,5.56906092]
[1772207784100,10.881,82.711,82.676,5.56906092]
[1772207785595,5.60467906,82.719,82.676,5.56906092]
[1772207786904,10.8804,82.715,82.676,5.56906092]
[1772207787101,5.60467906,82.719,82.676,5.56906092]
[1772207787402,5.60467906,82.719,82.641,5.56906092]
[1772207788300,5.60467906,82.719,82.667,5.56906092]
[1772207789005,16.48477906,82.718,82.67,5.56906092]
[1772207789901,2.10415571,82.756,82.67,5.56906092]
[1772207790095,9.1097207,82.77,82.67,5.56906092]
[1772207790299,9.1097207,82.75,82.67,5.56906092]
[1772207790598,9.37372753,82.749,82.67,5.56906092]
[1772207790800,9.37372753,82.748,82.67,5.56906092]
[1772207790997,10.8785,82.73,82.687,10.884]
[1772207791199,9.1097207,82.75,82.687,10.884]
[1772207791398,9.1097207,82.75,82.683,5.56906092]
[1772207791906,5.60467906,82.749,82.683,5.56906092]
[1772207792106,5.60467906,82.749,82.7,10.8823]
[1772207792107,10.8774,82.738,82.7,10.8823]
[1772207792903,5.60467906,82.745,82.7,10.8823]
[1772207793307,16.48227906,82.736,82.695,5.56906092]
[1772207793507,16.48227906,82.736,82.651,21.7774]
[1772207793508,5.60467906,82.735,82.681,5.56906092]
[1772207793907,5.60467906,82.735,82.691,5.56906092]
[1772207794405,5.60467906,82.745,82.702,10.882]
[1772207796007,10.8769,82.742,82.702,10.882]
[1772207796409,5.60467906,82.738,82.676,5.56906092]
[1772207797606,5.60467906,82.738,82.693,5.56906092]
[1772207797813,5.60467906,82.752,82.693,5.56906092]
[1772207798909,10.877,82.741,82.697,10.8827]
[1772207799813,5.71057883,82.747,82.693,5.56906092]
[1772207800409,10.8783,82.731,82.693,5.56906092]
[1772207802014,10.8783,82.731,82.695,10.8829]
[1772207803016,10.8783,82.731,82.657,29.92568806]
[1772207803017,5.73399442,82.725,82.677,5.66664281]
[1772207803516,10.88,82.718,82.677,5.66664281]
[1772207804317,10.88,82.718,82.679,5.66664281]
[1772207804709,16.61309442,82.725,82.679,5.66664281]
[1772207805609,4.25023468,82.71,82.665,5.66664281]
[1772207806207,5.7403107,82.719,82.665,5.66664281]
[1772207806810,5.7401789,82.709,82.665,16.55354281]
[1772207807813,5.7401789,82.709,82.671,10.8861]
[1772207809413,11.20641416,82.751,82.65,4.25023468]
[1772207809414,5.69206797,82.699,82.65,5.66664281]
[1772207810616,5.69206797,82.699,82.659,10.8876]
[1772207811011,5.69206797,82.699,82.666,10.8868]
[1772207812717,4.25023468,82.71,82.673,10.8858]
[1772207812912,5.76167589,82.712,82.673,10.8858]
[1772207813417,5.76167589,82.712,82.662,5.66664281]
[1772207813418,5.76167589,82.712,82.665,10.8869]
[1772207813717,4.25023468,82.71,82.665,10.8869]
[1772207813917,5.78347379,82.707,82.665,10.8869]
[1772207815215,10.8816,82.706,82.665,10.8869]
[1772207816412,15.13263468,82.7,82.662,5.66664281]
[1772207817414,15.13263468,82.7,82.663,10.8872]
[1772207819320,4.25023468,82.7,82.663,10.8872]
[1772207819520,5.84697206,82.706,82.669,5.66664281]
[1772207820111,5.84697206,82.706,82.67,10.8863]
[1772207820314,4.25023468,82.72,82.671,5.66664281]
[1772207820619,4.25023468,82.73,82.687,10.884]
[1772207820821,4.25023468,82.73,82.687,16.55064281]
[1772207821021,4.25023468,82.73,82.688,5.66664281]
[1772207821210,5.71630847,82.729,82.671,5.66664281]
[1772207821510,5.71615817,82.728,82.671,5.66664281]
[1772207822122,10.8789,82.727,82.689,10.8838]
[1772207822522,5.71602381,82.726,82.671,5.66664281]
[1772207822924,5.71602381,82.726,82.689,10.8837]
[1772207824619,5.71602381,82.726,82.682,5.66664281]
[1772207824817,10.8792,82.725,82.683,5.66664281]
[1772207825017,4.25023468,82.73,82.683,5.66664281]
[1772207825618,4.25023468,82.71,82.668,5.66664281]
[1772207825919,4.25023468,82.71,82.676,10.8854]
[1772207826120,4.25023468,82.72,82.67,4.25023468]
[1772207826326,4.25023468,82.73,82.681,5.66664281]
[1772207826821,4.25023468,82.73,82.644,21.7794]
[1772207826822,5.69115712,82.745,82.691,5.66664281]
[1772207827118,4.25023468,82.75,82.691,5.66664281]
[1772207827321,5.67826167,82.772,82.72,4.24611357]
[1772207827625,4.24611357,82.78,82.721,5.66664281]
[1772207827922,4.24611357,82.77,82.726,16.54544281]
[1772207828422,4.24611357,82.77,82.735,10.8776]
[1772207828624,4.24611357,82.79,82.741,5.66664281]
[1772207829226,4.24611357,82.77,82.728,5.66664281]
[1772207830719,4.24611357,82.76,82.715,5.66626966]
[1772207830925,5.53998367,82.769,82.715,5.66626966]
[1772207831118,16.41338367,82.768,82.721,10.8796]
[1772207831317,5.53998367,82.768,82.722,5.66626966]
[1772207831924,4.24611357,82.78,82.735,10.8777]
[1772207832222,4.24611357,82.78,82.735,16.54396966]
[1772207832522,4.24611357,82.78,82.742,10.8768]
[1772207832717,4.24611357,82.79,82.741,5.66626966]
[1772207832917,4.24611357,82.8,82.741,5.66626966]
[1772207833415,4.24611357,82.8,82.751,5.66626966]
[1772207833620,5.53998367,82.798,82.751,5.66626966]
[1772207834017,9.78609724,82.79,82.751,5.66626966]
[1772207834218,5.53998367,82.789,82.748,5.66626966]
[1772207836020,5.53998367,82.789,82.752,10.8755]
[1772207836325,4.24611357,82.8,82.753,5.66626966]
[1772207837125,200.37084577,82.804,82.761,5.66626966]
[1772207837626,5.53998367,82.799,82.746,5.66626966]
[1772207837822,4.24611357,82.79,82.746,5.66626966]
[1772207838025,5.53998367,82.789,82.746,5.66626966]
[1772207838223,15.11801357,82.78,82.746,5.66626966]
[1772207838423,15.11801357,82.78,82.738,10.8773]
[1772207838624,4.24611357,82.78,82.738,16.54356966]
[1772207838826,4.24611357,82.78,82.743,10.8766]
[1772207839727,4.24611357,82.78,82.739,5.66626966]
[1772207840530,4.24611357,82.78,82.74,10.877]
[1772207840826,200.37084577,82.804,82.726,5.66626966]
[1772207840827,4.24611357,82.77,82.726,5.66626966]
[1772207841015,200.37084577,82.804,82.645,169.3937]
[1772207841016,4.24611357,82.75,82.712,5.66626966]
[1772207841220,5.53998367,82.758,82.712,5.66626966]
[1772207841821,5.53998367,82.758,82.721,10.8795]
[1772207842022,5.53998367,82.758,82.712,5.66626966]
[1772207842429,16.41478367,82.758,82.713,10.8805]
[1772207842630,4.24611357,82.75,82.713,10.8805]
[1772207843330,4.24611357,82.75,82.72,10.8797]
[1772207843629,5.53998367,82.758,82.712,5.66626966]
[1772207844232,5.53998367,82.758,82.72,10.8797]
[1772207844431,5.53998367,82.758,82.712,5.66626966]
[1772207844432,4.24611357,82.75,82.712,5.66626966]
[1772207844735,4.24611357,82.74,82.691,5.66626966]
[1772207845332,4.24611357,82.73,82.691,5.66626966]
[1772207847231,4.24611357,82.72,82.677,5.66626966]